Cogmind - Beta 13 @@@ ROGUE MODE // 2024.06.25 @ 12:49:43 Player: lazy_engineer Result: Destroyed by RL-KHM(R) with Subdweller Laser Performance ------------- Evolutions (0) 0 Regions Visited (3) 600 Robots Destroyed (16) 80 Value Destroyed (367) 367 Prototype IDs (0) 0 Alien Tech Used (0) 0 Bonus (0) 0 TOTAL SCORE: 1047 Bonus ------- None Cogmind --------- Core Integrity 0/250 Matter 300/300 Energy 100/100 System Corruption 0% Temperature Cool (6) Movement Flying (37) Location -10/Subcaves Parts ------- > --- POWER (1) -------- (None) > --- PROPULSION (2) --- Flight Unit Flight Unit > --- UTILITY (2) ------ Small Storage Unit Signal Interpreter > --- WEAPON (2) ------- Makeshift Axe > --- INVENTORY (8) ---- Light Ion Engine Light Nuclear Core Light Nuclear Core Flight Unit Sensor Array Signal Interpreter Light Assault Rifle Light Assault Rifle Peak State ------------ > --- POWER ------------ (None) > --- PROPULSION ------- Flight Unit Flight Unit > --- UTILITY ---------- Small Storage Unit Signal Interpreter > --- WEAPON ----------- Light Assault Rifle Makeshift Axe > --- INVENTORY -------- Light Ion Engine Light Nuclear Core Light Nuclear Core Light Angular Momentum Engine Flight Unit Sensor Array Signal Interpreter Light Assault Rifle [Rating: 10] Favorites ----------- Power Light Ion Engine Engine Light Ion Engine Propulsion Light Treads Treads Light Treads Wheel Wheel Flight Unit Flight Unit Utility Small Storage Unit Storage Small Storage Unit Processor Signal Interpreter Weapon Assault Rifle Ballistic Gun Assault Rifle Slashing Weapon Makeshift Axe Build | -11 -10 -10 -10 ------- Run | Yrd Mat Min Sub Slots Evolved . | . . . . Power . | . . . . Propulsion . | . . . . Utility . | . . . . Weapon . | . . . . Parts Attached 17 | 6 3 7 1 Power 3 | 1 2 . . Engine 3 | 1 2 . . Core . | . . . . Reactor . | . . . . Propulsion 5 | 2 . 3 . Treads 2 | 1 . 1 . Leg . | . . . . Wheel 1 | 1 . . . Hover . | . . . . Flight 2 | . . 2 . Utility 2 | 1 . 1 . Device . | . . . . Storage 1 | 1 . . . Processor 1 | . . 1 . Hackware . | . . . . Protection . | . . . . Artifact . | . . . . Weapon 7 | 2 1 3 1 Energy Gun . | . . . . Energy Cannon . | . . . . Ballistic Gun 6 | 2 1 3 . Ballistic Cannon . | . . . . Launcher . | . . . . Special Weapon . | . . . . Impact Weapon . | . . . . Slashing Weapon 1 | . . . 1 Piercing Weapon . | . . . . Special Melee Weapon . | . . . . Unidentified Prototypes . | . . . . Parts Lost 5 | . . 5 . Power . | . . . . Propulsion 3 | . . 3 . Utility . | . . . . Weapon 2 | . . 2 . Highest Loss Streak 2 | . . 2 . To Critical Strikes . | . . . . Average Slot Usage (%) 87 | . 84 93 71 Engine 7 | . 13 8 . Treads 16 | . 14 22 . Wheel 2 | . 14 . . Flight 8 | . . 5 28 Storage 14 | . 14 14 14 Processor 11 | . . 13 14 Ballistic Gun 22 | . 27 27 1 Slashing Weapon 2 | . . . 13 Naked Turns . | . . . . Heaviest Build 14 | 14 14 12 8 Greatest Support 40 | 10 10 40 8 Greatest Overweight (x) 3 | 2 1 3 . Average Overweight (x) . | . . . . Largest Inventory Capacity 8 | 8 8 8 8 Average Capacity 7 | 6 8 8 8 Most Carried 8 | 5 7 8 8 Average Carried 6 | 3 4 7 7 Final Capacity 8 | 8 8 8 8 Final Carried 8 | 2 7 8 8 Class Distribution -------------------- 88% | Mutant 11% | Scavenger-Mutant Dominant Class ---------------- Mutant | -10/Materials Mutant | -10/Mines Mutant | -10/Subcaves Resources | -11 -10 -10 -10 ----------- Run | Yrd Mat Min Sub Matter Collected 579 | 260 138 171 10 Remotely . | . . . . Salvage Created 433 | . 163 270 . Parts 37 | . 17 20 . Haulers Intercepted . | . . . . Recyclers Shooed . | . . . . Parts Field Recycled . | . . . . Retrieved Matter . | . . . . Parts Self-Destructed 18 | . . . 18 Prevented . | . . . . Kills | -11 -10 -10 -10 ------- Run | Yrd Mat Min Sub Combat Hostiles Destroyed 16 | . 6 10 . Guns 16 | . 6 10 . Classes Destroyed 2 | . 2 . . Swarmer 9 | . 3 6 . Grunt 7 | . 3 4 . Best Kill Streak 3 | . 3 3 . Combat Bots Only 3 | . 3 3 . Max Kills in Single Turn 1 | . 1 1 . Gunslinging . | . . . . Exploded . | . . . . Melee . | . . . . Uniques/NPCs Destroyed . | . . . . Combat | -11 -10 -10 -10 -------- Run | Yrd Mat Min Sub Hostile Shots Fired 105 | . 29 72 4 Missed 26 | . 5 21 . Damage Taken 879 | . 268 525 86 Core 250 | . 40 124 86 Absorbed by Shields . | . . . . Core Remaining (%) 100 | 100 . . . Volleys Fired 62 | . 18 44 . Largest 2 | . 2 2 . Hottest 40 | . 40 40 . Shots Fired 104 | . 36 68 . Gun 104 | . 36 68 . Cannon . | . . . . Launcher . | . . . . Special . | . . . . Kinetic 104 | . 36 68 . Thermal . | . . . . Explosive . | . . . . Electromagnetic . | . . . . Robot Hit Streak 12 | . 12 5 . Robot Miss Streak 5 | . 2 5 . Penetration Max . | . . . . Secondary Targets 4 | . 1 3 . Max Gunslinging Chain 1 | . 1 1 . Shots Hit Robots 61 | . 25 35 1 Core Hits 28 | . 10 18 . Critical Kills . | . . . . Critical Parts Destroyed 1 | . . 1 . Critical Strikes 1 | . . 1 . Destroy 1 | . . 1 . Melee Attacks 8 | . . . 8 Impact . | . . . . Slashing 8 | . . . 8 Piercing . | . . . . Sneak Attacks . | . . . . Combat Hostiles . | . . . . Follow-up Attacks . | . . . . Damage Inflicted 774 | . 306 425 43 Guns 731 | . 306 425 . Cannons . | . . . . Explosions . | . . . . Melee 43 | . . . 43 Ramming . | . . . . Kinetic 731 | . 306 425 . Thermal . | . . . . Explosive . | . . . . Electromagnetic . | . . . . Impact . | . . . . Slashing 43 | . . . 43 Piercing . | . . . . Highest Corruption . | . . . . Average Corruption . | . . . . Corruption Purged . | . . . . Corruption Blocked . | . . . . Overload Shots . | . . . . Overflow Damage . | . . . . Projectiles . | . . . . Explosions . | . . . . Melee . | . . . . Knockbacks . | . . . . Impact . | . . . . Kinetic . | . . . . Secondary . | . . . . Self-Inflicted Damage . | . . . . Shots . | . . . . Rammed . | . . . . Targets Rammed . | . . . . Kicked . | . . . . Crushed . | . . . . Highest Temperature 30 | . 9 30 . Average Temperature 11 | . 4 14 . Received Heat Transfer 297 | . 102 177 18 Siege Activations . | . . . . Robots Corrupted . | . . . . Combat Hostiles . | . . . . Parts Fried . | . . . . Impact Corruptions . | . . . . Robots Melted . | . . . . Combat Hostiles . | . . . . Parts Melted . | . . . . Heat Transferred . | . . . . Parts Sabotaged . | . . . . Parts Stolen . | . . . . Parts Stripped . | . . . . Power Chain Reactions . | . . . . Alert | -11 -10 -10 -10 ------- Run | Yrd Mat Min Sub Peak Influence 188 | . 188 115 . Initial . | . . . . Average 43 | . 48 43 . Maximum Alert Level . | . . . . Low Security (%) 100 | 100 100 100 . Level 1 . | . . . . Level 2 . | . . . . Level 3 . | . . . . Level 4 . | . . . . Level 5 . | . . . . High Security . | . . . . Max Security . | . . . . Squads Dispatched . | . . . . Investigation . | . . . . Extermination . | . . . . Reinforcement . | . . . . Assault . | . . . . Garrison . | . . . . Intercept . | . . . . Searches Triggered . | . . . . Construction Impeded . | . . . . Haulers Reinforced . | . . . . Active Scanning Responses . | . . . . Cargo Convoy Interrupts . | . . . . Stealth | -11 -10 -10 -10 --------- Run | Yrd Mat Min Sub Distress Signals 1 | . 1 . . Communications Jammed . | . . . . Distress Signals . | . . . . Times Spotted 24 | . 10 10 4 Peak Tracking Total 3 | . 3 3 2 Tactical Retreats 2 | . 1 . 1 Traps | -11 -10 -10 -10 ------- Run | Yrd Mat Min Sub Traps Triggered 1 | . 1 . . Indirectly . | . . . . Trap Hack Attempts . | . . . . Triggered . | . . . . Disarmed . | . . . . Reprogrammed . | . . . . Reused 1 | . . . 1 Traps Extracted . | . . . . Installed 1 | . . . 1 Triggered . | . . . . Machines | -11 -10 -10 -10 ---------- Run | Yrd Mat Min Sub Machines Disabled 1 | . . . 1 Max in Single Turn 1 | . . . 1 Machines Repaired . | . . . . Machines Dismantled . | . . . . Machines Sabotaged . | . . . . Overloaded Fab Kills . | . . . . Hacking | -11 -10 -10 -10 --------- Run | Yrd Mat Min Sub Machines Accessed 5 | . 4 . 1 Terminals 4 | . 4 . . Fabricators . | . . . . Repair Stations . | . . . . Recycling Units . | . . . . Scanalyzers . | . . . . Garrison Access . | . . . . Total Hacks 11 | . 9 . 2 Successful 2 | . . . 2 Failed 9 | . 9 . . Catastrophic 3 | . 3 . . Database Lockouts . | . . . . Manual 7 | . 7 . . Terminals 9 | . 9 . . Fabricators . | . . . . Repair Stations . | . . . . Recycling Units . | . . . . Scanalyzers . | . . . . Garrison Access . | . . . . Terminal Hacks 2 | . . . 2 Record 2 | . . . 2 Fabricator Hacks . | . . . . Repair Station Hacks . | . . . . Recycling Unit Hacks . | . . . . Scanalyzer . | . . . . Garrison Access Hacks . | . . . . Unauthorized Hacks . | . . . . Terminals . | . . . . Fabricators . | . . . . Repair Stations . | . . . . Recycling Units . | . . . . Scanalyzers . | . . . . Garrison Access . | . . . . Data Cores Recovered . | . . . . Used . | . . . . Hacking Detections 4 | . 4 . . Full Trace Events . | . . . . Feedback Events . | . . . . Feedback Blocked . | . . . . Robot Schematics Acquired . | . . . . Robots Built . | . . . . Authchips . | . . . . Time . | . . . . Total Robot Build Rating . | . . . . Part Schematics Acquired . | . . . . Parts Built . | . . . . Authchips . | . . . . Time . | . . . . Total Part Build Rating . | . . . . Parts Repaired . | . . . . Time . | . . . . Parts Recycled . | . . . . Recycled Matter . | . . . . Retrieved Matter . | . . . . Retrieved Components . | . . . . Parts Scanalyzed . | . . . . Part Schematics Acquired . | . . . . Parts Damaged . | . . . . Bothacking | -11 -10 -10 -10 ------------ Run | Yrd Mat Min Sub Used RIF Installer . | . . . . Robots Hacked . | . . . . Non-combat . | . . . . Combat . | . . . . Robot Hacks Applied . | . . . . Relay Couplers Released . | . . . . Fabnet Peak Effective % . | . . . . Robots Rewired . | . . . . Allies Hacked . | . . . . Hacks Repelled . | . . . . Allies | -11 -10 -10 -10 -------- Run | Yrd Mat Min Sub Total Allies . | . . . . Largest Group . | . . . . Highest-Rated Group . | . . . . Highest-Rated Ally . | . . . . Total Orders . | . . . . Ally Attacks . | . . . . Total Damage . | . . . . Kills . | . . . . Allies Corrupted . | . . . . Allies Melted . | . . . . Intel | -11 -10 -10 -10 ------- Run | Yrd Mat Min Sub Robot Analysis Total . | . . . . Derelict Logs Recovered 3 | . . 3 . Drone Launches . | . . . . Drone Recoveries . | . . . . Exploration | -11 -10 -10 -10 ------------- Run | Yrd Mat Min Sub Turns Passed 2364 | 42 440 1406 476 Spaces Moved 2259 | 35 378 633 1213 Core 23 | 12 . 11 . Treads 453 | . . 453 . Legs . | . . . . Wheels 401 | 23 378 . . Hover . | . . . . Flight 1382 | . . 169 1213 Fastest Speed 37 | 50 80 37 37 Average Speed 72 | 85 94 127 37 Slowest Speed 200 | 150 95 200 37 Overloaded Moves . | . . . . Propulsion Burnouts . | . . . . Robots Hopped 2 | . . 2 . Cave-ins Triggered . | . . . . Exploration Rate (%) 50 | 3 58 101 39 Regions Visited 3 Branch Regions 2 Pre-discovered Areas 1 | . . 1 . Known Exits Taken 1 | . . 1 . Unknown Exits Taken 2 | 1 1 . . Scrap Searched 1 | . . 1 . Spaces Dug . | . . . . Terrain Destroyed . | . . . . Melee . | . . . . Projectile . | . . . . AOE . | . . . . Terrain Rammed . | . . . . Walls Destroyed . | . . . . Machines Disabled . | . . . . Actions | -11 -10 -10 -10 --------- Run | Yrd Mat Min Sub Total 2873 | 46 422 1172 1233 Wait 506 | . 17 483 6 Move 2252 | 34 377 628 1213 Hop 2 | . . 2 . Pick Up 19 | 6 7 5 1 Fast Attach 5 | 2 . 3 . Attach 9 | 4 2 3 . Detach 1 | . . . 1 Swap 3 | . 1 1 1 Drop 5 | . . 3 2 Fire 62 | . 18 44 . Melee 8 | . . . 8 Ram . | . . . . Kick . | . . . . Crush . | . . . . Escape Stasis . | . . . . Rewire . | . . . . Trap 1 | . . . 1 Miscellaneous . | . . . . Route ------- -11/Scrapyard -10/Materials -10/Mines (discovered 3 exits: *Mat x2 / *Sub) -10/Subcaves History --------- Turn | Location | Event 7 | -11/Scrapyard | Discovered new exit (range 14) 43 | -11/Scrapyard | Entered Materials 311 | -10/Materials | Build established: Mutant 464 | -10/Materials | Discovered new exit (range 11) 483 | -10/Materials | Entered Mines 525 | -10/Mines | Learned Materials emergency access door positions 722 | -10/Mines | Learned Materials emergency access door positions 722 | -10/Mines | Discovered new exit (range 6) 729 | -10/Mines | Identified exit to Materials 986 | -10/Mines | Learned location of Storage (-9) 1605 | -10/Mines | Core integrity fell below 50% 1624 | -10/Mines | Discovered exit to Materials (range 10) 1873 | -10/Mines | Discovered new exit (range 7) 1889 | -10/Mines | Identified exit to Subcaves 1889 | -10/Mines | Entered Subcaves 1894 | -10/Subcaves | Shifting Twisted Machinery released Mak. Light Armor Plating 1897 | -10/Subcaves | Shifting Twisted Machinery released Mak. Axe 2001 | -10/Subcaves | Visited Clippyterm 2126 | -10/Subcaves | Shifting Twisted Machinery released Mak. Light Armor Plating 2206 | -10/Subcaves | Shifting Twisted Machinery released Scrap Shield 2269 | -10/Subcaves | Core integrity fell below 20% 2365 | -10/Subcaves | Destroyed by RL-KHM(R) with Subdweller Laser Last Messages --------------- 01904_ Subatomizers dissect the Lgt. Nuclear Core. 01964_ Acquired 5 matter. 02001_ A thin wall crumbles away, revealing a door. 02001_ The door opens automatically. 02002_ Connecting with Clippyterm... >>Record! "LU-1G1" It looks like you're researching the legendary digger of dangerously deep tunnels, unfortunately it seems not even members of the Boring Crew know what became of that one. >>Record "Clippyterm" Welcome to Clippyterm v0.53, my misguided attempt to resurrect an ancient AI. I give up. There must be something fundamentally wrong with the algorithm, because no matter how much data I collect to feed it, half the time it still manages to suggest unhelpful sample queries and responses. --DD-NU8 02002_ Clippyterm disabled. 02090_ Subatomizers dissect the Sub. Monowheel. Mak. Light Armor Plating falls loose from the Twisted Machinery. Scrap Shield falls loose from the Twisted Machinery. 02350_ Installed Piercing Trap. Map ----- +----------------------------------------------------+ | | | | | | | | | | | | | | | ?????????????????????????????????????????????????? | | ?????????????????????????????????????????????????? | | ?????????????????????????????????????????????????? | | ?????????????????????????????????#???????????????? | | ????????????????????????##"? ""? ????????????????? | | ????????????????????????#"""" " ?????????????????? | | ????????????????????????#"""""" ?????????????????? | | ????????????????????????#" " ??????????????????? | | ????????????????????????#" ""&???????????????????? | | ????????????????????????# "#???????????????????? | | ????????????????????????#" ""##??????????????????? | | ????????????????????????#" ######?????????????? | | ????????????????????????## # #?????????????? | | ?????????????????????????# ##?????????????? | | ?????????????????????????## ## "#?????????????? | | ?????????????????####???#######" "#######???????? | | ?????????????????# ##??# ### " ## #???????? | | ??????????####???# #### R #???????? | | ????###??## #???# @######### ###?????? | | ??### #### ##??## ##??### #?????? | | ?## ## #?### #### ^ ##?????? | | ## #?# ### ### R ##?????? | | # ##?## ### ##] ##????? | | ### ### ### #????? | | # #### #?# ##????? | | ##### ## ## ##???### | | ### # ###???## ## ## ## ###### | | #### #####??????# #### # | | ### ##??????????## #???# ## | | ?# ##????????????# ###??#### # | | ?# #####?????????## ##????## ## ### | | ?## #??????????# #?????## ####### | | #### #????####?## #??????## #????# | | ### #???## ### ###?????# #????# | | ##### ###### ##???? #????## | | ### #??## #??? ##????## | | ## #?# #### ##??? ##?????# | | ####### %##??? ######## | | #??# #######???# ## # # | | #### #?????????#### | | ### ##????????????# ## ### | | ### ##?????????##?## #### ## | | # #####??####????# ## ##### ## | +----------------------------------------------------+ Best States ------------- Heat Dissipation 25 Energy Generation 10 Energy Capacity 250 Matter Stores 300 Matter Capacity 300 Sight Range 16 Terrain Scan Density 10 Evasion (%) 62 Recoil Reduction 2 Item Schematics ----------------- None Robot Schematics ------------------ None Fabricated ------------ Nothing Alien Tech Used ----------------- None Achievements -------------- None Challenges ------------ None Game ------ Seed GuidanceArchitectConstruct Manual? 0 Play Time 00:17:12 Cumulative 38.3 hours Start 2024.06.25 @ 12:33:13 End 2024.06.25 @ 12:49:43 Sessions 1 Manual Loads 0 Difficulty Rogue Special Mode None Game No. 79 Rogue 79 Adventurer 0 Explorer 0 Win Type - Total 0 Types 0/0/0/0/0/0/0/0/0 Lore% 24 Gallery% 30 Achievement% 26 Wizard Run 0 Options --------- Layout 0 ASCII 0 Keyboard 0 Movement Mouse Keybinds 0 Fullscreen 1 Font 24/Smallcaps Map View 76x50 Zoom Use 0% Tactical HUD 1 Map Filters NONE Filters NONE Steam 1 RUN: ee2b720f-4e44-41dc-b28b-02f384c04696